bitfinex/quotes_BTCUSD_20250616
["timestamp","ask_amount","ask_price","bid_price","bid_amount"]
[1750090944277,0.82266037,107760.0,107750.0,0.40495955]
[1750090944750,0.84121926,107760.0,107750.0,0.41423968]
[1750090945219,0.85049914,107760.0,107750.0,0.40495955]
[1750090945857,0.92808938,107760.0,107750.0,0.39567924]
[1750090946081,0.91880959,107760.0,107750.0,0.39567924]
[1750090946309,0.82266037,107760.0,107750.0,0.40495963]
[1750090947272,0.2411675,107760.0,107750.0,0.38639876]
[1750090947478,0.82266037,107760.0,107750.0,0.38639876]
[1750090948496,0.81338049,107760.0,107750.0,0.38639876]
[1750090948724,0.01856199,107740.0,107730.0,0.20421293]
[1750090948953,0.02784324,107740.0,107730.0,0.24418022]
[1750090949183,0.02784324,107740.0,107730.0,0.18569659]
[1750090949423,0.64931754,107740.0,107730.0,0.41554497]
[1750090949654,0.06782467,107740.0,107730.0,0.41554497]
[1750090949896,0.05854333,107740.0,107730.0,0.41554497]
[1750090950168,0.05954333,107740.0,107730.0,0.41554497]
[1750090952009,0.05954324,107740.0,107730.0,0.41554497]
[1750090952235,0.05026199,107740.0,107730.0,0.41554497]
[1750090952455,0.05954324,107740.0,107730.0,0.41550497]
[1750090952737,0.06882467,107740.0,107730.0,0.41550497]
[1750090952946,0.06882467,107740.0,107730.0,0.22282497]
[1750090953153,0.06882467,107740.0,107730.0,0.41546497]
[1750090953405,0.05954324,107740.0,107730.0,0.41546497]
[1750090953638,0.06882458,107740.0,107730.0,0.41546497]
[1750090954142,0.07810601,107740.0,107730.0,0.41546497]
[1750090954372,0.06882458,107740.0,107730.0,0.41546497]
[1750090954781,0.05954324,107740.0,107730.0,0.41546497]
[1750090955024,0.05026199,107740.0,107730.0,0.41546497]
[1750090955982,0.06026199,107740.0,107730.0,0.41546497]
[1750090957131,0.05098091,107740.0,107730.0,0.41546497]
[1750090957340,0.06026191,107740.0,107730.0,0.41546497]
[1750090957845,0.06954308,107740.0,107730.0,0.41546497]
[1750090958075,0.06026191,107740.0,107730.0,0.41546497]
[1750090958925,0.06954308,107740.0,107730.0,0.41546497]
[1750090959200,0.06954308,107740.0,107730.0,0.22659497]
[1750090959201,0.18563207,107740.0,107730.0,0.22659497]
[1750090959435,0.59077421,107740.0,107730.0,0.41550497]
[1750090959656,0.00928134,107740.0,107730.0,0.41550497]
[1750090959876,0.59077421,107740.0,107730.0,0.41550497]
[1750090960100,0.60005572,107740.0,107730.0,0.41550497]
[1750090960322,0.60005572,107740.0,107730.0,0.41927497]
[1750090960549,0.00928134,107740.0,107730.0,0.41927497]
[1750090960782,0.00928117,107740.0,107730.0,0.41927437]
[1750090961022,0.59116311,107740.0,107730.0,0.41927437]
[1750090961245,0.60044411,107740.0,107730.0,0.41927437]
[1750090961722,0.60972536,107740.0,107730.0,0.41927437]
[1750090961957,0.60044402,107740.0,107730.0,0.41927437]
[1750090962407,0.60116294,107740.0,107730.0,0.41927437]
[1750090962640,0.61044411,107740.0,107730.0,0.41931437]
[1750090962870,0.61972545,107740.0,107730.0,0.41931437]
[1750090963547,0.64430688,107740.0,107730.0,0.41931437]
[1750090963764,0.66040688,107740.0,107730.0,0.41931437]
[1750090964224,0.62574411,107740.0,107730.0,0.41931437]
[1750090964822,0.04386217,107740.0,107730.0,0.41931437]
[1750090965082,0.62574411,107740.0,107730.0,0.41931437]
[1750090965298,0.019281,107740.0,107730.0,0.41931437]
[1750090965517,0.61044411,107740.0,107730.0,0.41931437]
[1750090965727,0.61972545,107740.0,107730.0,0.41931437]
[1750090965938,0.03784351,107740.0,107730.0,1.00119631]
[1750090966175,0.05304351,107740.0,107730.0,1.00119631]
[1750090966465,0.06232494,107740.0,107730.0,1.00119631]
[1750090966902,0.05304351,107740.0,107730.0,1.00119631]
[1750090967162,0.04376217,107740.0,107730.0,1.00119631]
[1750090967437,0.034481,107740.0,107730.0,1.00119631]
[1750090967709,0.02856208,107740.0,107730.0,1.00119631]
[1750090967924,0.03784333,107740.0,107730.0,1.00119631]
[1750090968334,0.04712476,107740.0,107730.0,1.00119631]
[1750090968546,0.04712467,107740.0,107730.0,1.00119631]
[1750090969039,0.0564061,107740.0,107730.0,1.00119631]
[1750090969475,0.0869061,107740.0,107730.0,1.00119631]
[1750090970099,0.06834333,107740.0,107730.0,1.00119631]
[1750090970332,0.05324333,107740.0,107730.0,1.00119631]
[1750090970975,0.06252476,107740.0,107730.0,1.00119631]
[1750090971825,0.05324333,107740.0,107730.0,1.00119631]
[1750090972018,0.06252476,107740.0,107730.0,1.00119631]
[1750090974418,0.05324333,107740.0,107730.0,1.00119631]
[1750090974632,0.01,107740.0,107730.0,1.61399825]
[1750090974840,0.01,107740.0,107730.0,1.71024001]
[1750090975702,0.01,107740.0,107730.0,1.12835807]
[1750090975910,0.01,107740.0,107730.0,1.03211631]
[1750090976325,0.01,107740.0,107730.0,1.61399825]
[1750090976729,0.01,107740.0,107730.0,1.03211631]
[1750090976949,0.01,107740.0,107730.0,1.03191709]
[1750090982867,0.01,107740.0,107730.0,1.70984157]
[1750090984211,0.01,107740.0,107730.0,1.12815885]
[1750090984675,0.01928091,107740.0,107730.0,0.94447885]
[1750090984901,0.01928082,107740.0,107730.0,1.09711885]
[1750090985129,0.01,107740.0,107730.0,1.09711885]
[1750090986618,0.019281,107740.0,107730.0,1.09711885]
[1750090987011,0.01928091,107740.0,107730.0,1.09711885]
[1750090987862,0.01,107740.0,107730.0,1.09711885]
[1750090988084,0.01928091,107740.0,107730.0,1.09711885]
[1750090989074,0.02856199,107740.0,107730.0,1.09711885]
[1750090989302,0.01928091,107740.0,107730.0,1.09711885]
[1750090990853,0.02856191,107740.0,107730.0,1.09711885]
[1750090991103,0.02856191,107740.0,107730.0,1.00087709]
[1750090991342,0.06222442,107740.0,107730.0,0.79522532]
[1750090991580,0.07842442,107740.0,107730.0,0.98778532]
[1750090991795,0.06914308,107740.0,107730.0,0.98778532]
[1750090992007,0.05294308,107740.0,107730.0,0.98778532]
[1750090992440,0.05294308,107740.0,107730.0,0.99155532]
[1750090992645,0.06222442,107740.0,107730.0,0.99155532]
[1750090992846,0.05294308,107740.0,107730.0,0.99155532]
[1750090993074,0.06222433,107740.0,107730.0,0.99155532]
[1750090993266,0.04366191,107740.0,107730.0,0.99155532]
[1750090993480,0.01,107740.0,107730.0,0.99155532]
[1750090993906,0.01928082,107740.0,107730.0,0.99155532]
[1750090994320,0.01,107740.0,107730.0,0.99155532]
[1750090994744,0.01,107740.0,107730.0,1.7011798]
[1750091001054,0.01,107740.0,107730.0,1.9686198]
[1750091003431,0.01,107740.0,107730.0,2.3086198]
[1750091003616,0.01,107740.0,107730.0,2.5086198]
[1750091003862,0.0011495,107740.0,107730.0,2.5286198]
[1750091004727,0.0021495,107740.0,107730.0,2.5286198]
[1750091005082,0.0011495,107740.0,107730.0,2.5886198]
[1750091005278,0.0021495,107740.0,107730.0,2.5936198]
[1750091005769,0.0011495,107740.0,107730.0,2.5936198]
[1750091006163,0.0011495,107740.0,107730.0,2.5956198]
[1750091006314,0.0011495,107740.0,107730.0,2.63016065]
[1750091008414,0.0011495,107740.0,107730.0,2.92406065]
[1750091011862,0.0011495,107740.0,107730.0,2.63016065]
[1750091014493,0.00021811,107740.0,107730.0,2.63016065]
[1750091017170,0.00021811,107740.0,107730.0,2.92406065]
[1750091024553,4.279e-05,107740.0,107730.0,2.92406065]
[1750091024964,4.279e-05,107740.0,107730.0,3.50484694]
[1750091025809,0.1339,107770.0,107750.0,0.77099497]
[1750091026029,0.102,107770.0,107760.0,2.5862697]
[1750091027274,0.102,107770.0,107760.0,2.5900397]
[1750091027695,0.102,107770.0,107760.0,2.5910397]
[1750091027910,0.102,107770.0,107760.0,2.61935863]
[1750091028541,0.102,107770.0,107760.0,2.03797472]
[1750091028980,0.102,107770.0,107760.0,2.03770032]
[1750091029233,0.1184,107770.0,107760.0,2.03770032]
[1750091029654,0.1341,107770.0,107760.0,1.84526032]
[1750091029861,0.1341,107770.0,107760.0,2.03770032]
[1750091031719,0.1341,107770.0,107760.0,1.84526032]
[1750091031997,0.1341,107770.0,107760.0,2.03766032]
[1750091035389,0.1341,107770.0,107760.0,2.30502032]
[1750091036828,0.1341,107770.0,107760.0,2.15250032]
[1750091037032,0.1341,107770.0,107760.0,2.30502032]
[1750091037816,0.1341,107770.0,107760.0,1.72377361]
[1750091038020,0.1341,107770.0,107760.0,2.30502032]
[1750091038232,0.1341,107770.0,107760.0,0.6789969]
[1750091038444,0.14643,107770.0,107760.0,0.77515514]
[1750091038659,0.14643,107770.0,107760.0,1.35640185]
[1750091039339,0.14643,107770.0,107760.0,0.77515514]
[1750091039577,0.1441,107770.0,107760.0,1.35640185]
[1750091040108,0.1441,107770.0,107760.0,1.45264361]
[1750091040291,0.1441,107770.0,107760.0,2.03389032]
[1750091040491,0.1441,107770.0,107760.0,1.45264361]
[1750091040728,0.1441,107770.0,107760.0,1.16400185]
[1750091040931,0.1441,107770.0,107760.0,1.35640185]
[1750091041135,0.14643,107770.0,107760.0,1.35640185]
[1750091041750,0.1441,107770.0,107760.0,1.93764856]
[1750091041953,0.1441,107770.0,107760.0,2.03389032]
[1750091042359,0.1441,107770.0,107760.0,2.03766032]
[1750091042878,0.1441,107770.0,107760.0,1.45641361]
[1750091043222,0.1441,107770.0,107760.0,2.03766032]
[1750091044140,0.1284,107770.0,107760.0,2.03766032]
[1750091044347,0.112,107770.0,107760.0,2.03766032]
[1750091044786,0.1283,107770.0,107760.0,2.03766032]
[1750091045495,0.1437,107770.0,107760.0,2.03766032]
[1750091046221,0.1437,107770.0,107760.0,1.45641361]
[1750091049711,0.1437,107770.0,107760.0,2.03766032]
[1750091049912,0.1283,107770.0,107760.0,2.03766032]
[1750091050323,0.1283,107770.0,107760.0,1.84526032]
[1750091050510,0.1283,107770.0,107760.0,2.03762032]
[1750091050947,0.112,107770.0,107760.0,2.03762032]
[1750091052518,0.112,107770.0,107760.0,2.00930139]
[1750091054706,0.1444,107770.0,107760.0,1.42805468]
[1750091054922,0.1444,107770.0,107760.0,2.00957883]
[1750091056128,0.1283,107770.0,107760.0,2.00957883]
[1750091056901,0.1433,107770.0,107760.0,2.00957883]
[1750091057102,0.1433,107770.0,107760.0,2.27693883]
[1750091059158,0.1433,107770.0,107760.0,1.01407621]
[1750091059356,0.1433,107770.0,107760.0,2.17684707]
[1750091059553,0.1433,107770.0,107760.0,0.21443621]
[1750091059759,0.15490841,107770.0,107760.0,0.40671621]
[1750091060211,0.15490833,107770.0,107760.0,0.98810164]
[1750091060411,0.14563,107770.0,107760.0,0.98810164]
[1750091060636,0.15490841,107770.0,107760.0,0.98810164]
[1750091060841,0.14563,107770.0,107760.0,0.98810164]
[1750091061129,0.15490833,107770.0,107760.0,0.40671621]
[1750091061709,0.17346532,107770.0,107760.0,0.40671621]
[1750091062076,0.15490833,107770.0,107760.0,0.74671621]
[1750091062632,0.14563,107770.0,107760.0,0.74671621]
[1750091062939,0.15490833,107770.0,107760.0,0.74671621]
[1750091063289,0.14563,107770.0,107760.0,0.74671621]
[1750091063954,0.15490833,107770.0,107760.0,0.74671621]
[1750091064363,0.15490824,107770.0,107760.0,0.74671621]
[1750091064779,0.16418665,107770.0,107760.0,0.74671621]
[1750091064955,0.15490824,107770.0,107760.0,0.74671621]
[1750091065312,0.16418665,107770.0,107760.0,0.74671621]
[1750091065445,0.16418657,107770.0,107760.0,0.74671621]
[1750091066787,0.15257824,107770.0,107760.0,0.74671621]
[1750091066987,0.16185665,107770.0,107760.0,0.74671621]
[1750091067483,0.15257824,107770.0,107760.0,0.74671621]
[1750091068104,0.15257824,107770.0,107760.0,0.55443621]
[1750091068318,0.15257824,107770.0,107760.0,0.74671621]
[1750091068665,0.16185674,107770.0,107760.0,0.74671621]
[1750091068866,0.16185665,107770.0,107760.0,0.40671621]
[1750091069544,0.17113515,107770.0,107760.0,0.40671621]
[1750091069982,0.18969257,107770.0,107760.0,0.21443621]
[1750091070202,0.17346515,107770.0,107760.0,0.40671621]
[1750091070423,0.18274382,107770.0,107760.0,0.40671621]
[1750091070616,0.19202266,107770.0,107760.0,0.40671621]
[1750091071126,0.19202266,107770.0,107760.0,0.25427621]
[1750091071338,0.19202266,107770.0,107760.0,0.40671621]
[1750091071475,0.37760384,107770.0,107760.0,0.40671621]
[1750091071731,1.12367857,107770.0,107760.0,0.04084]
[1750091072037,1.12367857,107770.0,107760.0,0.37887762]
[1750091072326,0.44601002,107770.0,107760.0,0.38815732]
[1750091072478,0.44601002,107770.0,107760.0,0.39743694]
[1750091072678,0.44601002,107770.0,107760.0,0.04084]
[1750091072916,0.44601002,107770.0,107760.0,0.3871575]
[1750091073257,0.44601002,107770.0,107760.0,0.24399729]
[1750091073258,0.45301002,107770.0,107760.0,0.24399729]
[1750091073980,0.48089002,107770.0,107760.0,0.03984]
[1750091074199,0.03016826,107760.0,107750.0,0.48081601]
[1750091074409,0.05168864,107760.0,107750.0,0.67309601]
[1750091075169,0.05863834,107760.0,107750.0,0.67309601]
[1750091075501,0.05863826,107760.0,107750.0,0.67309601]
[1750091075741,0.04935864,107760.0,107750.0,0.67309601]
[1750091076154,0.04207919,107760.0,107750.0,0.67309601]
[1750091076357,0.05135855,107760.0,107750.0,1.25461534]
[1750091076594,0.05435855,107760.0,107750.0,1.25461534]
[1750091076946,0.04507919,107760.0,107750.0,1.25461534]
[1750091077155,0.05435864,107760.0,107750.0,0.67309601]
[1750091077360,0.05435864,107760.0,107750.0,1.25461534]
[1750091077567,0.05435855,107760.0,107750.0,1.25461534]
[1750091078211,0.06363808,107760.0,107750.0,1.25461534]
[1750091078419,0.05435855,107760.0,107750.0,1.25461534]
[1750091078974,0.06363808,107760.0,107750.0,1.25461534]
[1750091079250,0.05435855,107760.0,107750.0,0.67309601]
[1750091079653,0.063638,107760.0,107750.0,0.67309601]
[1750091080092,0.07291753,107760.0,107750.0,0.67309601]
[1750091081003,0.063638,107760.0,107750.0,0.67309601]
[1750091081505,0.05435855,107760.0,107750.0,0.67309601]
[1750091084095,0.0729177,107760.0,107750.0,0.67309601]
[1750091084290,0.063638,107760.0,107750.0,0.67309601]
[1750091086002,0.0729177,107760.0,107750.0,0.67309601]
[1750091086364,0.08219749,107760.0,107750.0,0.67309601]
[1750091087531,0.0729177,107760.0,107750.0,0.67309601]
[1750091088832,0.0729177,107760.0,107750.0,1.25477844]
[1750091089035,0.0729177,107760.0,107750.0,0.67309601]
[1750091089452,0.65460013,107760.0,107750.0,0.68237623]
[1750091090191,0.063638,107760.0,107750.0,0.68237623]
[1750091090378,0.07291762,107760.0,107750.0,1.26405866]
[1750091090867,0.07291762,107760.0,107750.0,1.07177866]
[1750091091213,0.04507919,107760.0,107750.0,1.26401866]
[1750091091402,0.04507927,107760.0,107750.0,1.26401866]
[1750091092490,0.01427927,107760.0,107750.0,1.26778866]
[1750091092920,0.01427927,107760.0,107750.0,1.26769986]
[1750091093267,0.01427927,107760.0,107750.0,0.68610623]
[1750091093477,0.01427927,107760.0,107750.0,1.26769986]
[1750091094783,0.0142791,107760.0,107750.0,1.26769986]
[1750091095488,0.0142791,107760.0,107750.0,0.68610623]
[1750091095754,0.0142791,107760.0,107750.0,1.26769986]
[1750091095956,0.02355837,107760.0,107750.0,1.26769986]
[1750091096510,0.03283773,107760.0,107750.0,1.26769986]
[1750091096716,0.0142791,107760.0,107750.0,1.26769986]
[1750091096923,0.02355829,107760.0,107750.0,1.26769986]
[1750091097560,0.03283774,107760.0,107750.0,1.26769986]
[1750091097697,0.04813765,107760.0,107750.0,1.26769986]
[1750091097917,0.03283756,107760.0,107750.0,1.26769986]
[1750091099179,0.02355829,107760.0,107750.0,1.26769986]
[1750091099597,0.03283765,107760.0,107750.0,1.26769986]
[1750091100067,0.02355829,107760.0,107750.0,1.26769986]
[1750091100495,0.04803774,107760.0,107750.0,1.26769986]
[1750091100704,0.03875829,107760.0,107750.0,1.26769986]
[1750091100906,0.04803765,107760.0,107750.0,1.26769986]
[1750091101127,0.03875829,107760.0,107750.0,1.26769986]
[1750091101340,0.0142791,107760.0,107750.0,1.26769986]
[1750091101550,0.02355837,107760.0,107750.0,1.26769986]
[1750091102448,0.03895837,107760.0,107750.0,1.26769986]
[1750091102656,0.04823782,107760.0,107750.0,0.68610623]
[1750091102861,0.03895837,107760.0,107750.0,0.68610623]
[1750091103591,0.04823782,107760.0,107750.0,0.68610623]
[1750091103792,0.06473782,107760.0,107750.0,0.68610623]
[1750091104021,0.09261682,107760.0,107750.0,0.68610623]
[1750091104433,0.08333737,107760.0,107750.0,0.68610623]
[1750091104774,0.09261682,107760.0,107750.0,0.68610623]
[1750091105688,0.08333737,107760.0,107750.0,0.68610623]
[1750091105891,0.09261673,107760.0,107750.0,0.68610623]
[1750091106196,0.08333737,107760.0,107750.0,0.41874623]
[1750091107206,0.09261673,107760.0,107750.0,0.41874623]
[1750091107955,0.10189626,107760.0,107750.0,0.41874623]
[1750091108158,0.09261673,107760.0,107750.0,0.41874623]
[1750091109050,0.10189626,107760.0,107750.0,0.41874623]
[1750091109254,0.09261673,107760.0,107750.0,0.41874623]
[1750091109460,0.10189626,107760.0,107750.0,0.41874623]
[1750091110065,0.11117596,107760.0,107750.0,0.26630623]
[1750091110272,0.11117596,107760.0,107750.0,0.40565637]
[1750091110273,0.29677436,107760.0,107750.0,0.40565637]
[1750091110686,0.28749509,107760.0,107750.0,0.40565637]
[1750091110931,0.27821573,107760.0,107750.0,0.40565637]
[1750091112468,0.91281201,107760.0,107740.0,0.19489736]
[1750091112659,0.24545662,107750.0,107740.0,0.20419449]
[1750091112860,0.63238006,107750.0,107740.0,0.40563618]
[1750091113067,0.63237954,107750.0,107740.0,0.41868718]
[1750091113195,0.05056052,107750.0,107740.0,1.0005062]
[1750091113398,0.05984109,107750.0,107740.0,1.0005062]
[1750091113631,0.07844452,107750.0,107740.0,1.0005062]
[1750091114587,0.06234452,107750.0,107740.0,1.0005062]
[1750091115352,0.06334452,107750.0,107740.0,1.0005062]
[1750091115566,0.06334452,107750.0,107740.0,0.41868718]
[1750091115778,0.073625,107750.0,107740.0,0.21724618]
[1750091115997,0.06434452,107750.0,107740.0,1.0005062]
[1750091116414,0.07362509,107750.0,107740.0,1.0005062]
[1750091116627,0.08290574,107750.0,107740.0,1.0005062]
[1750091117262,0.08290574,107750.0,107740.0,0.41868718]
[1750091117470,0.26852058,107750.0,107740.0,1.0005062]
[1750091117694,0.08290574,107750.0,107740.0,1.0005062]
[1750091118111,0.26852058,107750.0,107740.0,1.0005062]
[1750091118485,0.08290574,107750.0,107740.0,1.0005062]
[1750091118697,0.06434452,107750.0,107740.0,1.0005062]
[1750091118910,0.002,107750.0,107740.0,1.40566522]
[1750091119132,0.02056009,107750.0,107740.0,1.59782522]
[1750091119353,0.01127996,107750.0,107740.0,1.0160062]
[1750091119571,0.02056001,107750.0,107740.0,1.0160062]
[1750091119784,0.03912053,107750.0,107740.0,1.0160062]
[1750091120196,0.04840102,107750.0,107740.0,1.0160062]
[1750091120384,0.04840093,107750.0,107740.0,1.0160062]
[1750091120729,0.04840093,107750.0,107740.0,1.0005062]
[1750091121526,0.03912045,107750.0,107740.0,1.0005062]
[1750091121946,0.04840093,107750.0,107740.0,1.0005062]
[1750091122127,0.03912045,107750.0,107740.0,1.0005062]
[1750091122380,0.04840084,107750.0,107740.0,1.0005062]
[1750091122771,0.03912045,107750.0,107740.0,1.0005062]
[1750091123188,0.04840093,107750.0,107740.0,1.0005062]
[1750091123611,0.04840154,107750.0,107740.0,1.0005062]
[1750091124035,0.03912097,107750.0,107740.0,1.0005062]
[1750091124968,0.04840154,107750.0,107740.0,1.0005062]
[1750091125439,0.22473685,107750.0,107740.0,0.40940618]
[1750091125656,0.24013685,107750.0,107740.0,0.40940618]
[1750091126075,0.23085654,107750.0,107740.0,0.40012501]
[1750091126298,0.23085654,107750.0,107740.0,0.40940626]
[1750091126507,0.24695654,107750.0,107740.0,0.40940626]
[1750091126787,0.24695654,107750.0,107740.0,0.25700626]
[1750091126991,0.24695654,107750.0,107740.0,0.40940626]
[1750091127412,0.9156443,107750.0,107740.0,0.23467367]
[1750091127654,0.9156443,107750.0,107740.0,0.39635518]
[1750091128081,0.81949508,107750.0,107740.0,0.39635518]
[1750091128491,0.81021451,107750.0,107740.0,0.39635518]
[1750091129217,0.80093386,107750.0,107740.0,0.38707367]
[1750091129422,0.80093386,107750.0,107740.0,0.39635518]
[1750091130793,0.80093386,107750.0,107740.0,0.38707367]
[1750091131732,0.80093386,107750.0,107740.0,0.39635518]
[1750091131954,0.86119552,107750.0,107740.0,0.03976]
[1750091132163,0.80093386,107750.0,107740.0,0.19216]
[1750091132390,0.81049595,107750.0,107740.0,0.19216]
[1750091133614,0.81049595,107750.0,107740.0,0.38707367]
[1750091133979,0.81049595,107750.0,107740.0,0.19216]
[1750091134582,0.18761484,107750.0,107740.0,0.96889252]
[1750091134789,0.19689541,107750.0,107740.0,1.01264377]
[1750091134988,0.19689541,107750.0,107740.0,1.00336252]
[1750091135202,0.19689541,107750.0,107740.0,0.98776252]
[1750091135540,0.19689541,107750.0,107740.0,0.99704386]
[1750091135748,0.19689541,107750.0,107740.0,0.98194386]
[1750091136156,0.22477941,107750.0,107740.0,0.99122511]
[1750091139021,0.22477941,107750.0,107740.0,0.40012484]
[1750091139197,0.22477941,107750.0,107740.0,0.97266252]
[1750091139405,0.32804806,107750.0,107740.0,0.97266252]
[1750091139563,0.34444806,107750.0,107740.0,0.3908435]
[1750091139765,0.34444806,107750.0,107740.0,0.97266252]
[1750091140147,0.24829884,107750.0,107740.0,0.98194386]
[1750091140415,0.24829884,107750.0,107740.0,0.3908435]
[1750091140615,0.24829884,107750.0,107740.0,0.97266252]
[1750091141351,0.23189884,107750.0,107740.0,0.98194386]
[1750091142580,0.21549884,107750.0,107740.0,0.99122511]
[1750091143627,0.21549884,107750.0,107740.0,0.40940609]
[1750091143783,0.05772527,107750.0,107740.0,1.00050628]
[1750091143988,0.06700558,107750.0,107740.0,1.00978736]
[1750091144320,0.1631548,107750.0,107740.0,1.00978693]
[1750091144480,0.06700558,107750.0,107740.0,1.00978693]
[1750091145150,0.05772493,107750.0,107740.0,1.00978693]
[1750091146121,0.05772493,107750.0,107740.0,0.42796791]
[1750091146329,0.05772493,107750.0,107740.0,1.00978693]
[1750091146519,0.05772484,107750.0,107740.0,1.00978693]
[1750091146960,0.06700541,107750.0,107740.0,1.00978693]
[1750091149436,0.07628606,107750.0,107740.0,1.00978693]
[1750091149776,0.2619009,107750.0,107740.0,1.00978693]
[1750091149978,0.27800159,107750.0,107740.0,1.00978693]
[1750091150183,0.37415081,107750.0,107740.0,1.00978693]
[1750091150421,0.37415081,107750.0,107740.0,0.42796791]
[1750091150613,0.3648705,107750.0,107740.0,0.41868691]
[1750091150821,0.96268952,107750.0,107740.0,0.41868691]
[1750091151237,0.3808705,107750.0,107740.0,0.41868691]
[1750091151874,0.3808705,107750.0,107740.0,0.40940583]
[1750091152084,0.3808705,107750.0,107740.0,0.20796466]
[1750091152307,0.85725982,107750.0,107740.0,0.40008466]
[1750091152540,0.26616023,107750.0,107740.0,0.40008466]
[1750091152745,0.26616023,107750.0,107740.0,0.40008501]
[1750091153378,0.26616023,107750.0,107740.0,0.40936626]
[1750091153787,0.26616023,107750.0,107740.0,0.39080367]
[1750091153992,0.26616023,107750.0,107740.0,0.4000851]
[1750091154225,0.26616023,107750.0,107740.0,0.99118537]
[1750091154428,0.25016023,107750.0,107740.0,0.99118537]
[1750091155242,0.25016023,107750.0,107740.0,0.98190412]
[1750091155397,0.25617958,107750.0,107740.0,0.98190412]
[1750091155602,0.24087958,107750.0,107740.0,0.99118546]
[1750091157436,0.22477958,107750.0,107740.0,1.00974788]
[1750091159870,0.22477958,107750.0,107740.0,0.41864769]
[1750091160281,0.22477958,107750.0,107740.0,1.00046671]
[1750091162411,0.22477958,107750.0,107740.0,0.41864769]
[1750091162625,0.22477958,107750.0,107740.0,0.99118546]
[1750091165336,0.19689558,107750.0,107740.0,0.99118546]
[1750091166681,0.19689558,107750.0,107740.0,0.40936644]
[1750091166887,0.19689558,107750.0,107740.0,0.99118546]
[1750091167241,0.18761484,107750.0,107740.0,0.98190412]
[1750091167398,0.18761484,107750.0,107740.0,0.4000851]
[1750091167750,0.18761484,107750.0,107740.0,0.98190412]
[1750091168691,0.18761484,107750.0,107740.0,0.40936644]
[1750091168907,0.18761484,107750.0,107740.0,0.99118546]
[1750091170262,0.28376406,107750.0,107740.0,0.97262269]
[1750091170465,0.28376406,107750.0,107740.0,0.39080367]
[1750091170689,0.86558308,107750.0,107740.0,0.39080367]
[1750091170928,0.1949135,107740.0,107730.0,4.729e-05]
[1750091171144,1.4875933,107740.0,107730.0,4.729e-05]
[1750091171358,6.9445386,107740.0,107730.0,4.729e-05]
[1750091171567,7.5604849,107740.0,107730.0,4.729e-05]
[1750091171773,7.6936812,107740.0,107730.0,4.729e-05]
[1750091172015,7.68176861,107740.0,107730.0,4.729e-05]
[1750091172223,7.11018164,107740.0,107730.0,4.729e-05]
[1750091172431,7.13347188,107740.0,107730.0,4.729e-05]
[1750091172633,7.28579188,107740.0,107730.0,4.729e-05]
[1750091172842,7.29279188,107740.0,107730.0,4.729e-05]
[1750091173053,6.67230937,107740.0,107730.0,4.729e-05]
[1750091173275,6.66530937,107740.0,107730.0,4.729e-05]
[1750091173455,7.25651198,107740.0,107730.0,4.729e-05]
[1750091174118,7.29072239,107740.0,107730.0,4.729e-05]
[1750091174817,7.28420942,107740.0,107730.0,4.729e-05]
[1750091175020,7.33420942,107740.0,107730.0,4.729e-05]
[1750091175244,7.3712565,107740.0,107730.0,4.729e-05]
[1750091175457,7.33420942,107740.0,107730.0,4.729e-05]
[1750091176704,7.41162944,107740.0,107730.0,4.729e-05]
[1750091176928,7.44867652,107740.0,107730.0,4.729e-05]
[1750091177154,7.91417323,107740.0,107730.0,4.729e-05]
[1750091177851,7.96974385,107740.0,107730.0,4.729e-05]
[1750091178429,7.94214808,107740.0,107730.0,4.729e-05]
[1750091178538,7.8864745,107740.0,107730.0,4.729e-05]
[1750091178795,7.86049536,107740.0,107730.0,4.729e-05]
[1750091179020,7.86047374,107740.0,107730.0,4.729e-05]
[1750091179436,7.86044818,107740.0,107730.0,4.729e-05]
[1750091179645,7.88815892,107740.0,107730.0,4.729e-05]
[1750091180665,5.74075464,107730.0,107720.0,0.002]
[1750091180868,7.30213032,107730.0,107720.0,0.002]
[1750091181098,7.14977032,107730.0,107720.0,0.002]
[1750091181293,7.30210761,107730.0,107720.0,0.002]
[1750091182276,7.30910761,107730.0,107720.0,0.002]
[1750091182481,7.18531661,107730.0,107720.0,0.002]
[1750091182684,6.52541024,107730.0,107720.0,0.002]
[1750091182910,6.37926102,107730.0,107720.0,0.002]
[1750091183122,1.31472017,107730.0,107720.0,0.002]
[1750091183325,1.49491716,107730.0,107720.0,0.002]
[1750091183740,1.45945801,107730.0,107720.0,0.002]
[1750091183946,1.30709801,107730.0,107720.0,0.002]
[1750091184076,1.40324723,107730.0,107720.0,0.002]
[1750091184287,1.03124723,107730.0,107720.0,0.00577]
[1750091184510,1.52360723,107730.0,107720.0,0.00577]
[1750091184997,1.37124723,107730.0,107720.0,0.00577]
[1750091185166,0.94140462,107730.0,107720.0,0.00577]
[1750091185477,1.52360723,107730.0,107720.0,0.00577]
[1750091185903,1.52360723,107730.0,107720.0,0.04549]
[1750091188378,0.77450377,107730.0,107720.0,0.04549]
[1750091188631,0.01,107730.0,107720.0,1.02416809]
[1750091189080,0.01,107730.0,107720.0,1.03342739]
[1750091189582,0.003,107730.0,107720.0,1.03342739]
[1750091189820,0.02789103,107740.0,107730.0,0.24589565]
[1750091190046,0.2135231,107740.0,107730.0,0.24589565]
[1750091190255,0.2228047,107740.0,107730.0,0.24589565]
[1750091190689,0.02789103,107740.0,107730.0,0.24589565]
[1750091190904,4.727e-05,107740.0,107730.0,0.82809826]
[1750091191170,0.01232809,107740.0,107730.0,0.82809826]
[1750091191623,0.02160917,107740.0,107730.0,0.43797565]
[1750091191842,0.01232809,107740.0,107730.0,1.02017826]
[1750091192261,0.028609,107740.0,107730.0,1.02017826]
[1750091192482,0.028609,107740.0,107730.0,1.02394826]
[1750091193563,0.03789017,107740.0,107730.0,0.44174565]
[1750091193802,0.03789008,107740.0,107730.0,0.44174565]
[1750091194023,0.01004727,107740.0,107730.0,0.83186826]
[1750091194263,0.01004727,107740.0,107730.0,1.02394826]
[1750091194679,0.028609,107740.0,107730.0,1.02394826]
[1750091194926,0.03789,107740.0,107730.0,1.02394826]
[1750091195410,0.03789,107740.0,107730.0,0.83186826]
[1750091196837,0.03789,107740.0,107730.0,1.02390826]
[1750091197088,0.028609,107740.0,107730.0,1.02390826]
[1750091198522,0.01004727,107740.0,107730.0,1.56639087]
[1750091198743,0.01004727,107740.0,107730.0,1.60611087]
[1750091198949,0.01004727,107740.0,107730.0,1.02390826]
[1750091199158,0.01004727,107740.0,107730.0,1.05230722]
[1750091200034,0.00704727,107740.0,107730.0,1.05230722]
[1750091200506,0.01004727,107740.0,107730.0,1.05230722]
[1750091201200,0.00304727,107740.0,107730.0,1.05230722]
[1750091201523,0.00804727,107740.0,107730.0,1.05230722]
[1750091201733,0.00304727,107740.0,107730.0,1.05230722]
[1750091202444,0.00504727,107740.0,107730.0,1.05230722]
[1750091203123,0.00504727,107740.0,107730.0,0.86026722]
[1750091203330,0.00504727,107740.0,107730.0,1.05230722]
[1750091205095,0.00504727,107740.0,107730.0,0.86026722]